bitfinex/quotes_BTCUSD_20250515
["timestamp","ask_amount","ask_price","bid_price","bid_amount"]
[1747341315322,0.05526797,103280.0,103270.0,0.6108985]
[1747341315528,0.05526806,103280.0,103270.0,0.6108985]
[1747341315719,0.06495028,103280.0,103270.0,0.6108985]
[1747341316221,0.06495009,103280.0,103270.0,0.6108985]
[1747341316504,0.25859917,103280.0,103270.0,0.5459986]
[1747341316707,0.25859917,103280.0,103270.0,0.55568129]
[1747341316918,0.06495084,103280.0,103270.0,0.34576129]
[1747341317069,0.05526852,103280.0,103270.0,0.54962819]
[1747341317432,0.05526843,103280.0,103270.0,0.8932607]
[1747341317797,0.05526843,103280.0,103270.0,0.9238607]
[1747341318008,0.05526843,103280.0,103270.0,0.58627899]
[1747341318324,0.01654085,103280.0,103270.0,0.58627899]
[1747341318542,0.02622242,103280.0,103270.0,0.9540607]
[1747341318943,0.01654085,103280.0,103270.0,0.9540607]
[1747341319502,0.002,103280.0,103270.0,0.9540607]
[1747341321267,0.01168157,103280.0,103270.0,0.7441407]
[1747341321446,0.04558603,103280.0,103270.0,0.81375899]
[1747341321694,0.05526807,103280.0,103270.0,0.75295899]
[1747341321895,0.04558603,103280.0,103270.0,0.75295899]
[1747341322043,0.05526807,103280.0,103270.0,0.54955899]
[1747341322465,0.05526797,103280.0,103270.0,0.54955899]
[1747341322794,0.04558603,103280.0,103270.0,0.54955899]
[1747341324241,0.0649501,103280.0,103270.0,0.54955899]
[1747341324447,0.05526797,103280.0,103270.0,0.54955899]
[1747341324657,0.05526816,103280.0,103270.0,0.54955899]
[1747341324866,0.05526807,103280.0,103270.0,0.54955899]
[1747341325069,0.24891761,103280.0,103270.0,0.5301937]
[1747341325268,0.05526909,103280.0,103270.0,0.54955936]
[1747341325420,0.24891742,103280.0,103270.0,0.30702728]
[1747341325620,0.23923557,103280.0,103270.0,0.52051054]
[1747341325826,0.23923557,103280.0,103270.0,0.52987677]
[1747341326024,0.23923557,103280.0,103270.0,0.53955974]
[1747341326224,0.23923557,103280.0,103270.0,0.54955974]
[1747341326560,0.23923557,103280.0,103270.0,0.55924262]
[1747341326751,0.23923557,103280.0,103270.0,0.55924215]
[1747341328211,0.04558724,103280.0,103270.0,0.55924215]
[1747341328420,0.24891789,103280.0,103270.0,0.55924215]
[1747341328622,0.05526956,103280.0,103270.0,0.55924168]
[1747341328867,0.24891789,103280.0,103270.0,0.54955899]
[1747341329047,0.2586003,103280.0,103270.0,0.54955899]
[1747341329467,0.2586003,103280.0,103270.0,0.5398762]
[1747341329700,0.24891826,103280.0,103270.0,0.54955889]
[1747341329943,0.24891826,103280.0,103270.0,0.34575889]
[1747341330156,0.24891826,103280.0,103270.0,0.0160508]
[1747341330356,0.29345391,103280.0,103270.0,0.42320123]
[1747341330530,0.29345391,103280.0,103270.0,0.44256756]
[1747341331310,0.26045391,103280.0,103270.0,0.44256756]
[1747341332561,0.22955391,103280.0,103270.0,0.44256756]
[1747341333593,0.22955391,103280.0,103270.0,0.45225053]
[1747341333804,0.22955391,103280.0,103270.0,0.45225006]
[1747341333982,0.03590521,103280.0,103270.0,0.46193285]
[1747341334206,0.24891752,103280.0,103270.0,0.7898313]
[1747341334361,0.24891752,103280.0,103270.0,0.79951399]
[1747341334706,0.25859993,103280.0,103270.0,0.79951399]
[1747341334857,0.25859993,103280.0,103270.0,0.7898313]
[1747341335894,0.25859993,103280.0,103270.0,0.46193228]
[1747341336100,0.04558687,103280.0,103270.0,0.49203228]
[1747341336319,0.04558687,103280.0,103270.0,0.52303228]
[1747341338179,0.2392352,103280.0,103270.0,0.4425668]
[1747341338382,0.04558687,103280.0,103270.0,0.45224949]
[1747341338503,0.24891752,103280.0,103270.0,0.45224949]
[1747341338711,0.25859993,103280.0,103270.0,0.4425668]
[1747341338930,0.25859993,103280.0,103270.0,0.45224959]
[1747341339349,0.24891817,103280.0,103270.0,0.45224959]
[1747341342192,0.23923613,103280.0,103270.0,0.4328843]
[1747341342391,0.23923613,103280.0,103270.0,0.44256727]
[1747341342614,0.23923613,103280.0,103270.0,0.45225015]
[1747341342760,0.23923613,103280.0,103270.0,0.24845015]
[1747341342972,0.23923613,103280.0,103270.0,0.45225015]
[1747341344168,0.23923613,103280.0,103270.0,0.44256727]
[1747341344359,0.22955391,103280.0,103270.0,0.4328843]
[1747341345286,0.22955391,103280.0,103270.0,0.43288449]
[1747341345719,0.22955391,103280.0,103270.0,0.44256765]
[1747341346214,0.22955391,103280.0,103270.0,0.45225072]
[1747341347941,0.21987159,103280.0,103270.0,0.43288449]
[1747341349497,0.21987159,103280.0,103270.0,0.44256765]
[1747341349668,0.21987159,103280.0,103270.0,0.43288449]
[1747341349873,0.21018918,103280.0,103270.0,0.43288449]
[1747341350473,0.21018918,103280.0,103270.0,0.41351788]
[1747341350675,0.21018918,103280.0,103270.0,0.43288449]
[1747341351079,0.21018918,103280.0,103270.0,0.44256765]
[1747341351285,0.21018918,103280.0,103270.0,0.43288449]
[1747341351744,0.75991665,103280.0,103270.0,0.0060508]
[1747341351882,1.09991665,103280.0,103270.0,0.0060508]
[1747341352085,0.22761525,103250.0,103240.0,0.61640786]
[1747341352333,0.22761525,103250.0,103240.0,0.19816786]
[1747341352566,0.22761525,103250.0,103240.0,0.21422088]
[1747341352751,0.22761525,103250.0,103240.0,0.22390704]
[1747341352929,0.22761525,103250.0,103240.0,0.42731647]
[1747341353133,0.21793049,103250.0,103240.0,0.21422088]
[1747341353675,0.21793049,103250.0,103240.0,0.4186304]
[1747341354045,0.21793049,103250.0,103240.0,0.42831647]
[1747341354289,0.21793049,103250.0,103240.0,0.43800245]
[1747341354511,0.22761525,103250.0,103240.0,0.82595546]
[1747341354719,0.23730048,103250.0,103240.0,0.51937393]
[1747341354920,0.23730048,103250.0,103240.0,0.84726948]
[1747341355108,0.23730048,103250.0,103240.0,0.83758379]
[1747341355458,0.23730048,103250.0,103240.0,0.83858379]
[1747341357133,0.23730048,103250.0,103240.0,0.50100208]
[1747341358089,0.22761572,103250.0,103240.0,0.50100208]
[1747341361159,0.22761572,103250.0,103240.0,0.49131629]
[1747341361366,0.22761572,103250.0,103240.0,0.50100217]
[1747341361566,0.21793068,103250.0,103240.0,0.49131629]
[1747341361813,0.28570103,103250.0,103240.0,0.21522088]
[1747341362024,0.28670103,103250.0,103240.0,0.21422088]
[1747341362434,0.28670103,103250.0,103240.0,0.21522088]
[1747341362772,0.28670103,103250.0,103240.0,0.21422088]
[1747341362974,0.28670103,103250.0,103240.0,0.2195104]
[1747341363178,0.02622589,103250.0,103240.0,0.62937799]
[1747341363448,0.002,103250.0,103240.0,0.74605869]
[1747341363659,0.02136904,103250.0,103240.0,0.74605869]
[1747341363786,0.01168438,103250.0,103240.0,0.74605869]
[1747341363998,0.02136904,103250.0,103240.0,0.74605869]
[1747341364344,0.03105398,103250.0,103240.0,0.74605869]
[1747341364555,0.02136904,103250.0,103240.0,0.74605869]
[1747341364969,0.04073902,103250.0,103240.0,0.74605869]
[1747341365764,0.05042387,103250.0,103240.0,0.74605869]
[1747341366166,0.04073949,103250.0,103240.0,0.74605869]
[1747341366333,0.24412979,103250.0,103240.0,0.74605887]
[1747341366531,0.23444494,103250.0,103240.0,0.74605887]
[1747341366819,0.03105511,103250.0,103240.0,0.75574438]
[1747341366999,0.02136998,103250.0,103240.0,0.61632267]
[1747341367409,0.0213696,103250.0,103240.0,0.61632267]
[1747341367774,0.0213696,103250.0,103240.0,0.95390438]
[1747341367985,0.03105464,103250.0,103240.0,0.95390438]
[1747341368592,0.02136904,103250.0,103240.0,0.95390438]
[1747341368804,0.04073884,103250.0,103240.0,0.95390438]
[1747341369376,0.04073865,103250.0,103240.0,0.95390438]
[1747341369786,0.0310538,103250.0,103240.0,0.95390438]
[1747341370708,0.02136904,103250.0,103240.0,0.95390438]
[1747341370916,0.002,103250.0,103240.0,0.95390438]
[1747341371210,0.01168447,103250.0,103240.0,0.95390438]
[1747341371394,0.02136923,103250.0,103240.0,0.95390438]
[1747341371579,0.01168447,103250.0,103240.0,0.95390438]
[1747341371798,0.02136913,103250.0,103240.0,0.95390438]
[1747341372396,0.01168438,103250.0,103240.0,0.95390438]
[1747341372646,0.02136895,103250.0,103240.0,0.95390438]
[1747341373003,0.03105371,103250.0,103240.0,0.95390438]
[1747341373432,0.02136895,103250.0,103240.0,0.95390438]
[1747341374089,0.03105371,103250.0,103240.0,0.95390438]
[1747341374495,0.01168438,103250.0,103240.0,0.95390438]
[1747341377024,0.002,103250.0,103240.0,0.95390438]
[1747341379369,0.002,103250.0,103240.0,1.14962438]
[1747341382650,0.002,103250.0,103240.0,1.48962438]
[1747341383279,0.002,103250.0,103240.0,1.88962438]
[1747341383479,0.001,103250.0,103240.0,1.88962438]
[1747341383692,0.12586989,103270.0,103260.0,0.22273757]
[1747341383893,0.12586989,103270.0,103260.0,0.91498868]
[1747341384248,0.12586989,103270.0,103260.0,0.9210417]
[1747341384652,0.11618673,103270.0,103260.0,0.9210417]
[1747341385103,0.11818673,103270.0,103260.0,0.9210417]
[1747341385393,0.31185446,103270.0,103260.0,0.51337636]
[1747341385609,0.19077064,103270.0,103260.0,0.5327439]
[1747341385906,0.3747555,103270.0,103260.0,0.32641655]
[1747341386352,0.3747555,103270.0,103260.0,0.34578409]
[1747341386575,0.3445555,103270.0,103260.0,0.33610037]
[1747341387034,0.3445555,103270.0,103260.0,0.34578409]
[1747341387661,0.3138555,103270.0,103260.0,0.34578409]
[1747341390260,0.3138555,103270.0,103260.0,0.35546772]
[1747341391200,0.3138555,103270.0,103260.0,0.34578409]
[1747341391403,0.3138555,103270.0,103260.0,0.33610037]
[1747341391886,0.3138555,103270.0,103260.0,0.34578409]
[1747341392087,0.3138555,103270.0,103260.0,0.33610037]
[1747341392433,0.3138555,103270.0,103260.0,0.34578409]
[1747341392830,0.3138555,103270.0,103260.0,0.34576415]
[1747341393449,0.3138555,103270.0,103260.0,0.35544787]
[1747341393972,0.12018842,103270.0,103260.0,0.3651315]
[1747341394372,0.3138555,103270.0,103260.0,0.3651315]
[1747341394783,0.3138555,103270.0,103260.0,0.34576415]
[1747341394993,0.3138555,103270.0,103260.0,0.35544787]
[1747341396273,0.3138555,103270.0,103260.0,0.34544787]
[1747341396477,0.3138555,103270.0,103260.0,0.33576415]
[1747341396637,0.30417243,103270.0,103260.0,0.34576415]
[1747341396854,0.30417243,103270.0,103260.0,0.35544778]
[1747341397266,0.30417243,103270.0,103260.0,0.32608033]
[1747341397469,0.30417243,103270.0,103260.0,0.34576434]
[1747341397609,0.31871328,103270.0,103260.0,0.0257168]
[1747341397819,0.28539128,103270.0,103260.0,0.22908693]
[1747341398019,0.28539128,103270.0,103260.0,0.23877112]
[1747341398228,0.27570793,103270.0,103260.0,0.21940264]
[1747341398435,0.27570793,103270.0,103260.0,0.23877112]
[1747341398636,0.27570793,103270.0,103260.0,0.01605302]
[1747341402058,0.27570793,103270.0,103260.0,0.02594967]
[1747341402668,0.27570793,103270.0,103260.0,0.01605302]
[1747341403887,0.27570793,103270.0,103260.0,0.00605302]
[1747341404232,0.04508916,103290.0,103280.0,0.29639445]
[1747341404306,0.04508916,103290.0,103280.0,0.63639445]
[1747341404552,0.04508916,103290.0,103280.0,1.89332493]
[1747341404732,0.04508916,103290.0,103280.0,1.07940493]
[1747341404961,0.04508916,103290.0,103280.0,1.89953795]
[1747341405383,0.04508916,103290.0,103280.0,1.79389102]
[1747341405607,0.04508916,103290.0,103280.0,1.39809102]
[1747341405851,0.04508916,103290.0,103280.0,1.79377102]
[1747341406061,0.04508916,103290.0,103280.0,1.79477102]
[1747341407043,0.0741287,103300.0,103290.0,0.23267288]
[1747341407444,0.0741287,103300.0,103290.0,0.2387259]
[1747341407610,0.06444873,103300.0,103290.0,0.2387259]
[1747341408323,0.06444873,103300.0,103290.0,0.57704159]
[1747341408752,0.05476885,103300.0,103290.0,0.57704159]
[1747341408912,0.06444873,103300.0,103290.0,0.57704159]
[1747341409646,0.04508916,103300.0,103290.0,0.2397259]
[1747341409849,0.04508916,103300.0,103290.0,0.57704159]
[1747341411035,0.04508916,103300.0,103290.0,0.63984159]
[1747341411607,0.04508916,103300.0,103290.0,0.73715099]
[1747341411900,0.01454085,103310.0,103300.0,0.23265132]
[1747341412127,0.01454085,103310.0,103300.0,0.76820701]
[1747341412326,0.03389883,103310.0,103300.0,0.43089132]
[1747341412559,0.03389883,103310.0,103300.0,0.43694434]
[1747341412732,0.03389874,103310.0,103300.0,0.43694434]
[1747341413309,0.03489874,103310.0,103300.0,0.43694434]
[1747341413514,0.0272197,103310.0,103300.0,0.43694434]
[1747341413723,0.03689874,103310.0,103300.0,0.43694434]
[1747341414694,0.01754085,103310.0,103300.0,0.77426003]
[1747341414907,0.02721961,103310.0,103300.0,0.80636003]
[1747341415038,0.02721961,103310.0,103300.0,0.93506943]
[1747341415039,0.003,103310.0,103300.0,0.93506943]
[1747341415942,0.003,103310.0,103300.0,0.73682943]
[1747341416141,0.003,103310.0,103300.0,0.57602003]
[1747341416142,0.02721979,103310.0,103300.0,0.57602003]
[1747341416345,0.03689892,103310.0,103300.0,0.57602003]
[1747341416573,0.02621979,103310.0,103300.0,0.77422003]
[1747341416747,0.01454085,103310.0,103300.0,0.77422003]
[1747341417123,0.02421979,103310.0,103300.0,0.77422003]
[1747341418079,0.02421979,103310.0,103300.0,0.80632003]
[1747341419152,0.01454085,103310.0,103300.0,0.80632003]
[1747341419357,0.02421961,103310.0,103300.0,0.80632003]
[1747341419558,0.03389855,103310.0,103300.0,0.80632003]
[1747341420395,0.03389855,103310.0,103300.0,0.43690434]
[1747341420571,0.02421961,103310.0,103300.0,0.77422003]
[1747341420774,0.03389855,103310.0,103300.0,0.77422003]
[1747341421160,0.02421961,103310.0,103300.0,0.77422003]
[1747341421921,0.02421961,103310.0,103300.0,0.80632003]
[1747341422457,0.02421961,103310.0,103300.0,0.83772003]
[1747341423134,0.01454085,103310.0,103300.0,0.83772003]
[1747341423267,0.0242197,103310.0,103300.0,0.83772003]
[1747341423689,0.01454085,103310.0,103300.0,0.83772003]
[1747341425229,0.02421961,103310.0,103300.0,0.83772003]
[1747341425845,0.03389855,103310.0,103300.0,0.83772003]
[1747341426063,0.02421961,103310.0,103300.0,0.83772003]
[1747341428399,0.01454085,103310.0,103300.0,0.83772003]
[1747341430673,0.02421979,103310.0,103300.0,0.83772003]
[1747341430878,0.0242197,103310.0,103300.0,0.83772003]
[1747341431297,0.01454085,103310.0,103300.0,0.83772003]
[1747341431492,0.0242197,103310.0,103300.0,0.83772003]
[1747341431697,0.02421979,103310.0,103300.0,0.83772003]
[1747341431892,0.02421961,103310.0,103300.0,0.43690434]
[1747341432114,0.02421961,103310.0,103300.0,0.80442003]
[1747341432587,0.03389855,103310.0,103300.0,0.77422003]
[1747341432787,0.04357759,103310.0,103300.0,0.77422003]
[1747341432985,0.03389846,103310.0,103300.0,0.77422003]
[1747341433247,0.03389846,103310.0,103300.0,0.80642003]
[1747341433648,0.0435774,103310.0,103300.0,0.80642003]
[1747341434553,0.0435774,103310.0,103300.0,0.77422003]
[1747341435576,0.05325653,103310.0,103300.0,0.77422003]
[1747341435781,0.06293585,103310.0,103300.0,0.77422003]
[1747341436289,0.05325653,103310.0,103300.0,0.77422003]
[1747341436445,0.05325653,103310.0,103300.0,0.80482003]
[1747341437305,0.06293585,103310.0,103300.0,0.80482003]
[1747341438899,0.06293585,103310.0,103300.0,0.60662003]
[1747341439102,0.06293585,103310.0,103300.0,0.80482003]
[1747341439322,0.06293585,103310.0,103300.0,0.6888182]
[1747341439925,0.0435774,103310.0,103300.0,0.7218182]
[1747341440138,0.05325663,103310.0,103300.0,0.7218182]
[1747341440971,0.0435774,103310.0,103300.0,0.7218182]
[1747341441171,0.05325663,103310.0,103300.0,0.7218182]
[1747341442884,0.05325663,103310.0,103300.0,0.50050434]
[1747341443024,0.05325663,103310.0,103300.0,0.7218182]
[1747341447394,0.06293604,103310.0,103300.0,0.7218182]
[1747341447594,0.05325663,103310.0,103300.0,0.7218182]
[1747341447795,0.06293604,103310.0,103300.0,0.7218182]
[1747341447951,0.06293595,103310.0,103300.0,0.6582182]
[1747341448158,0.05325663,103310.0,103300.0,0.6582182]
[1747341448800,0.06293604,103310.0,103300.0,0.6582182]
[1747341449002,0.06293679,103310.0,103300.0,0.43534443]
[1747341449209,0.05325728,103310.0,103300.0,0.44502431]
[1747341449353,0.05325728,103310.0,103300.0,0.66633817]
[1747341449875,0.05325728,103310.0,103300.0,0.44502431]
[1747341450684,0.05325728,103310.0,103300.0,0.24838431]
[1747341450902,0.05325728,103310.0,103300.0,0.44502431]
[1747341451082,0.06293679,103310.0,103300.0,0.44502431]
[1747341452274,0.05325728,103310.0,103300.0,0.44502431]
[1747341453101,0.24684938,103310.0,103300.0,0.44502431]
[1747341453305,0.05325728,103310.0,103300.0,0.44502431]
[1747341453643,0.05325728,103310.0,103300.0,0.66633817]
[1747341455241,0.24684938,103310.0,103300.0,0.66633817]
[1747341455448,0.25652889,103310.0,103300.0,0.66633817]
[1747341455648,0.05325728,103310.0,103300.0,0.66633817]
[1747341456243,0.06293679,103310.0,103300.0,0.66633817]
[1747341457816,0.05325728,103310.0,103300.0,0.66633817]
[1747341458997,0.04357787,103310.0,103300.0,0.66633817]
[1747341459198,0.05325728,103310.0,103300.0,0.66633817]
[1747341461862,0.05325728,103310.0,103300.0,0.69883817]
[1747341462061,0.00967829,103320.0,103310.0,0.23263006]
[1747341462230,0.04357572,103320.0,103310.0,0.50217588]
[1747341462609,0.24682774,103320.0,103310.0,0.50217588]
[1747341463082,0.05325438,103320.0,103310.0,0.50217588]
[1747341463287,0.04357572,103320.0,103310.0,0.50217588]
[1747341463491,0.00967745,103330.0,103320.0,0.25313003]
[1747341463624,0.74796576,103340.0,103330.0,0.23258668]
[1747341463835,0.7673186,103340.0,103330.0,0.48410054]
[1747341464066,0.78185945,103340.0,103330.0,0.48410054]
[1747341464268,0.78185945,103340.0,103330.0,0.52125356]
[1747341464269,0.04508916,103340.0,103330.0,0.52125356]
[1747341464469,0.07411812,103340.0,103330.0,0.52125356]
[1747341464656,0.08865897,103340.0,103330.0,0.52130142]
[1747341464861,0.08865897,103340.0,103330.0,0.52129577]
[1747341465062,0.08965897,103340.0,103330.0,0.52129577]
[1747341465293,0.08965897,103340.0,103330.0,0.29998191]
[1747341465612,0.10901246,103340.0,103330.0,0.45999577]
[1747341465813,0.10901246,103340.0,103330.0,0.46099577]
[1747341466478,0.10401246,103340.0,103330.0,0.46099577]
[1747341467206,0.29754836,103340.0,103330.0,0.4513187]
[1747341467383,0.2987194,103340.0,103330.0,0.00709523]
[1747341467679,0.3198427,103340.0,103330.0,0.01709523]
[1747341468071,0.2896427,103340.0,103330.0,0.01709523]
[1747341468275,0.21875354,103340.0,103330.0,0.22032759]
[1747341468473,0.21875354,103340.0,103330.0,0.23968276]
[1747341468881,0.21875354,103340.0,103330.0,0.24936021]
[1747341469628,0.21875354,103340.0,103330.0,0.27966021]
[1747341471018,0.21875354,103340.0,103330.0,0.28933756]
[1747341472139,0.21875354,103340.0,103330.0,0.26998276]
[1747341472348,0.21875354,103340.0,103330.0,0.24936021]
[1747341473509,0.21875354,103340.0,103330.0,0.25903756]
[1747341475325,0.22843005,103340.0,103330.0,0.24935983]
[1747341475624,0.22843005,103340.0,103330.0,0.25903709]
[1747341476559,0.22843005,103340.0,103330.0,0.25903662]
[1747341476783,0.22843005,103340.0,103330.0,0.29033662]
[1747341477507,0.22843005,103340.0,103330.0,0.2709822]
[1747341477888,0.22843005,103340.0,103330.0,0.28065946]
[1747341479652,0.22843005,103340.0,103330.0,0.2396822]
[1747341480289,0.22843005,103340.0,103330.0,0.24935946]
[1747341480846,0.22843005,103340.0,103330.0,0.2396822]
[1747341481609,0.22843005,103340.0,103330.0,0.2728822]
[1747341481986,0.22843005,103340.0,103330.0,0.28255946]
[1747341482138,0.22843005,103340.0,103330.0,0.24935946]
[1747341482734,0.22843005,103340.0,103330.0,0.28255946]
[1747341483199,0.22843005,103340.0,103330.0,0.2728822]
[1747341484039,0.22843005,103340.0,103330.0,0.4693622]
[1747341484246,0.22843005,103340.0,103330.0,0.47903946]
[1747341484972,0.22843005,103340.0,103330.0,0.4361622]
[1747341485319,0.22843005,103340.0,103330.0,0.44583946]
[1747341485756,0.22843005,103340.0,103330.0,0.47613946]
[1747341487267,0.22843005,103340.0,103330.0,0.50673946]
[1747341487805,0.22843005,103340.0,103330.0,0.47613946]
[1747341488139,0.22843005,103340.0,103330.0,0.27965946]
[1747341488359,0.01067613,103340.0,103330.0,0.96616906]
[1747341488558,0.24778241,103340.0,103330.0,0.46892986]
[1747341488763,0.23810609,103340.0,103330.0,0.42648484]
[1747341488974,0.23810609,103340.0,103330.0,0.23000484]
[1747341489181,0.22842986,103340.0,103330.0,0.21064986]
[1747341489382,0.22842986,103340.0,103330.0,0.2103274]
[1747341489976,0.25852986,103340.0,103330.0,0.21032759]
[1747341490146,0.25852986,103340.0,103330.0,0.23000522]
[1747341490813,0.24885335,103340.0,103330.0,0.22000522]
[1747341491025,0.24885335,103340.0,103330.0,0.23000522]
[1747341491449,0.21875335,103340.0,103330.0,0.23968257]
[1747341492248,0.21875335,103340.0,103330.0,0.24935983]
[1747341494717,0.21875335,103340.0,103330.0,0.23000522]
[1747341495040,0.21875335,103340.0,103330.0,0.23968267]
[1747341495460,0.21875335,103340.0,103330.0,0.23000522]
[1747341495875,0.21875335,103340.0,103330.0,0.22968276]
[1747341496463,0.21875335,103340.0,103330.0,0.23968276]
[1747341496693,0.21875335,103340.0,103330.0,0.22968276]
[1747341496911,0.21875335,103340.0,103330.0,0.23968276]
[1747341497115,0.21875335,103340.0,103330.0,0.24936011]
[1747341497288,0.21875335,103340.0,103330.0,0.25903737]
[1747341497517,0.21875335,103340.0,103330.0,0.23968276]
[1747341497731,0.21875335,103340.0,103330.0,0.25903747]
[1747341497935,0.21875335,103340.0,103330.0,0.24936021]
[1747341498261,0.21875335,103340.0,103330.0,0.25903756]
[1747341498864,0.21875335,103340.0,103330.0,0.23936021]
[1747341499076,0.21875335,103340.0,103330.0,0.23968276]
[1747341499646,0.21875335,103340.0,103330.0,0.24936021]
[1747341499974,0.21875335,103340.0,103330.0,0.25903756]
[1747341500180,0.21875335,103340.0,103330.0,0.24936021]
[1747341500636,0.21875335,103340.0,103330.0,0.25903756]
[1747341501192,0.21875335,103340.0,103330.0,0.23968276]
[1747341501398,0.20907675,103340.0,103330.0,0.01709523]
[1747341501829,0.27267675,103340.0,103330.0,0.01709523]
[1747341503436,0.27267675,103340.0,103330.0,0.00709523]
[1747341503642,0.49390478,103340.0,103330.0,0.00709523]
[1747341503870,0.83390478,103340.0,103330.0,0.00709523]
[1747341504936,0.83390478,103340.0,103330.0,0.00104786]
[1747341505839,0.83390478,103340.0,103330.0,0.00709633]
[1747341506263,0.61267675,103340.0,103330.0,0.00709633]
[1747341508742,0.61267675,103340.0,103330.0,0.00104786]
[1747341513881,0.83390478,103340.0,103330.0,0.00104786]
[1747341517355,0.93121418,103340.0,103330.0,0.00104786]
[1747341517556,1.22468358,103340.0,103330.0,0.00104786]
[1747341517968,1.12737418,103340.0,103330.0,0.00104786]
[1747341518338,1.34860221,103340.0,103330.0,0.00104786]
[1747341519027,1.12737418,103340.0,103330.0,0.00104786]
[1747341520196,1.34860221,103340.0,103330.0,0.00104786]
[1747341521105,1.36277566,103340.0,103330.0,0.00104786]
[1747341526552,1.38750269,103340.0,103330.0,0.00104786]
[1747341527120,1.36277566,103340.0,103330.0,0.00104786]
[1747341537452,0.6605596,103340.0,103330.0,0.05614786]
[1747341537868,0.8565196,103340.0,103330.0,0.05614786]
[1747341538068,0.6605596,103340.0,103330.0,0.05614786]
[1747341538379,0.8565196,103340.0,103330.0,0.05614786]
[1747341538704,0.6605596,103340.0,103330.0,0.05614786]
[1747341539166,0.74503675,103340.0,103330.0,0.05614786]
[1747341541751,0.96626478,103340.0,103330.0,0.05614786]
[1747341542522,0.74503675,103340.0,103330.0,0.05614786]
[1747341542932,0.96626478,103340.0,103330.0,0.05614786]
[1747341549474,0.77030478,103340.0,103330.0,0.05614786]
[1747341549678,0.96610478,103340.0,103330.0,0.05614786]
[1747341550875,0.96610478,103340.0,103330.0,0.00104786]
[1747341551385,0.96610478,103340.0,103330.0,0.02824786]
[1747341552366,0.96610478,103340.0,103330.0,0.05274786]
[1747341553541,0.96610478,103340.0,103330.0,0.02824786]
[1747341554323,0.96610478,103340.0,103330.0,0.05394786]
[1747341560367,0.96594478,103340.0,103330.0,0.05394786]
[1747341565834,0.96594478,103340.0,103330.0,0.00104786]
[1747341565835,1.16056358,103340.0,103330.0,0.00104786]
[1747341566036,1.33418221,103340.0,103330.0,0.00104786]
[1747341566253,1.06325418,103340.0,103330.0,0.00104786]
[1747341571745,1.28448221,103340.0,103330.0,0.00104786]
[1747341572782,1.33618221,103340.0,103330.0,0.00104786]
[1747341573039,1.0182328,103340.0,103330.0,0.00104786]
[1747341573172,2.05657946,103340.0,103330.0,0.00104786]
[1747341574514,6.90314346,103340.0,103330.0,0.00104786]
[1747341574882,6.90214346,103340.0,103330.0,0.00104786]
[1747341575331,6.90514346,103340.0,103330.0,4.786e-05]
[1747341575485,6.21294346,103340.0,103330.0,4.786e-05]
[1747341575701,6.54148089,103340.0,103330.0,4.786e-05]
[1747341576577,6.53748089,103340.0,103330.0,4.786e-05]
[1747341576986,6.54948089,103340.0,103330.0,0.00104786]
[1747341577237,6.53948089,103340.0,103330.0,0.00104786]
[1747341577393,6.95760089,103340.0,103330.0,0.00104786]
[1747341577595,7.01574089,103340.0,103330.0,0.00104786]
[1747341577803,7.01574089,103340.0,103330.0,0.00204786]
[1747341577804,7.02674089,103340.0,103330.0,0.00204786]
[1747341577998,6.96860089,103340.0,103330.0,0.00204786]
[1747341582151,7.02685534,103340.0,103330.0,0.00204786]
[1747341583813,0.22747088,103320.0,103310.0,0.07745558]
[1747341583971,0.76723634,103320.0,103310.0,0.12645558]
[1747341584173,1.15823634,103320.0,103310.0,0.12645558]
[1747341585169,1.15923634,103320.0,103310.0,0.12645558]
[1747341585369,1.16123634,103320.0,103310.0,0.12645558]
[1747341586043,1.16123634,103320.0,103310.0,0.049]
[1747341586916,0.71878028,103320.0,103310.0,0.049]
[1747341587119,0.93996831,103320.0,103310.0,0.049]
[1747341587337,0.54900831,103320.0,103310.0,0.049]
[1747341587560,0.31323943,103320.0,103310.0,0.049]
[1747341587976,0.52310028,103320.0,103310.0,0.049]
[1747341588300,0.21593003,103320.0,103310.0,0.049]
[1747341588879,0.57047088,103320.0,103310.0,0.049]
[1747341591779,0.57047088,103320.0,103310.0,0.2425921]
[1747341592115,0.57047088,103320.0,103310.0,0.059]
[1747341592719,0.23047088,103320.0,103310.0,0.059]
[1747341599763,0.23047088,103320.0,103310.0,0.2525921]
[1747341599962,0.22079269,103320.0,103310.0,0.27800065]
[1747341600142,0.21111421,103320.0,103310.0,0.06504944]
[1747341600504,0.21111421,103320.0,103310.0,0.059]
[1747341601799,0.21111421,103320.0,103310.0,0.06504939]
[1747341604939,0.21111421,103320.0,103310.0,0.059]
[1747341610047,0.21111421,103320.0,103310.0,0.0650494]
[1747341618320,0.21210421,103320.0,103310.0,0.0650494]
[1747341619479,0.53064164,103320.0,103310.0,0.0550494]
[1747341619703,0.53064164,103320.0,103310.0,0.0541494]
[1747341620130,0.30941361,103320.0,103310.0,0.0541494]
[1747341621762,0.21210421,103320.0,103310.0,0.0541494]
[1747341622134,0.40690421,103320.0,103310.0,0.0541494]
[1747341623534,0.40788421,103320.0,103310.0,0.0541494]
[1747341632798,0.40788421,103320.0,103310.0,0.0311494]
[1747341632998,0.62911224,103320.0,103310.0,0.0311494]
[1747341633210,1.43295907,103320.0,103310.0,0.0060494]
[1747341633589,0.21297126,103300.0,103290.0,0.0569]
[1747341634007,0.21297126,103300.0,103290.0,0.06295035]
[1747341634535,0.21297126,103300.0,103290.0,0.25657993]
[1747341634680,0.21297126,103300.0,103290.0,0.06295035]
[1747341634875,0.21297126,103300.0,103290.0,0.25872362]
[1747341635109,0.21297126,103300.0,103290.0,0.48095165]
[1747341635627,0.20329119,103300.0,103290.0,0.25972362]
[1747341638787,0.20329119,103300.0,103290.0,0.26940509]
[1747341641167,0.20329119,103300.0,103290.0,0.06609404]
[1747341641574,0.20329119,103300.0,103290.0,0.25972362]
[1747341642040,0.20329119,103300.0,103290.0,0.06609404]
[1747341642571,0.20329119,103300.0,103290.0,0.25972362]
[1747341642811,0.20329119,103300.0,103290.0,0.26940509]
[1747341647222,0.20329119,103300.0,103290.0,0.27908638]
[1747341648364,0.20329119,103300.0,103290.0,0.26940509]
[1747341648763,0.20329119,103300.0,103290.0,0.27908647]
[1747341652322,0.20329119,103300.0,103290.0,0.06609404]
[1747341653417,0.20329119,103300.0,103290.0,0.03289404]
[1747341653618,0.20329119,103300.0,103290.0,0.00919404]
[1747341654241,0.20329119,103300.0,103290.0,0.03319404]
[1747341654844,0.20329119,103300.0,103290.0,0.03219404]
[1747341655048,0.20429119,103300.0,103290.0,0.03219404]
[1747341655375,0.20429119,103300.0,103290.0,0.05529404]
[1747341655582,0.20429119,103300.0,103290.0,0.05629404]
[1747341659279,0.20429119,103300.0,103290.0,0.05024369]
[1747341660217,0.20429119,103300.0,103290.0,0.4651013]
[1747341660422,0.20429119,103300.0,103290.0,0.27147172]
[1747341661024,0.20429119,103300.0,103290.0,0.05024369]
[1747341664422,0.20429119,103300.0,103290.0,0.04501369]
[1747341664823,0.20429119,103300.0,103290.0,0.25832474]
[1747341665364,0.19461084,103300.0,103290.0,0.25832474]
[1747341665569,0.19461084,103300.0,103290.0,0.05501369]